fUSD/lending_fUSD_20260203
["ID","MTS","AMOUNT","RATE_DAILY","PERIOD"]
[404387644,1770090535790,-300.0,8.121e-05,2]
[404387646,1770090545967,416.17078977,8.121e-05,2]
[404387647,1770090546236,500.0,8.121e-05,2]
[404387648,1770090546745,176.95028162,8.121e-05,2]
[404387649,1770090551705,502.86239326,8.121e-05,2]
[404387650,1770090551750,500.0,8.121e-05,2]
[404387651,1770090551793,500.0,8.121e-05,2]
[404387652,1770090551843,500.0,8.121e-05,2]
[404387653,1770090551891,500.0,8.121e-05,2]
[404387654,1770090551940,500.0,8.121e-05,2]
[404387655,1770090551996,500.0,8.121e-05,2]
[404387656,1770090552044,500.0,8.121e-05,2]
[404387657,1770090552094,500.0,8.121e-05,2]
[404387658,1770090552139,500.0,8.121e-05,2]
[404387659,1770090552214,500.0,8.121e-05,2]
[404387660,1770090552268,500.0,8.121e-05,2]
[404387661,1770090552312,500.0,8.121e-05,2]
[404387662,1770090552356,500.0,8.121e-05,2]
[404387663,1770090552410,500.0,8.121e-05,2]
[404387664,1770090552463,618.68720712,8.121e-05,2]
[404387665,1770090552515,500.0,8.121e-05,2]
[404387666,1770090552562,500.0,8.121e-05,2]
[404387667,1770090552613,500.0,8.121e-05,2]
[404387668,1770090552659,378.46039962,8.121e-05,2]
[404387669,1770090552684,121.53960038,8.121e-05,2]
[404387670,1770090552729,500.0,8.121e-05,2]
[404387671,1770090552780,500.0,8.121e-05,2]
[404387672,1770090552829,500.0,8.121e-05,2]
[404387673,1770090552894,500.0,8.121e-05,2]
[404387674,1770090552969,500.0,8.121e-05,2]
[404387675,1770090553021,500.0,8.121e-05,2]
[404387676,1770090553074,500.0,8.121e-05,2]
[404387677,1770090553128,500.0,8.121e-05,2]
[404387678,1770090553174,500.0,8.121e-05,2]
[404387679,1770090553250,500.0,8.121e-05,2]
[404387680,1770090553302,500.0,8.121e-05,2]
[404387681,1770090553356,500.0,8.121e-05,2]
[404387682,1770090553409,500.0,8.121e-05,2]
[404387683,1770090553473,500.0,8.121e-05,2]
[404387684,1770090553520,500.0,8.121e-05,2]
[404387685,1770090553574,500.0,8.121e-05,2]
[404387686,1770090553649,500.0,8.121e-05,2]
[404387687,1770090553695,500.0,8.121e-05,2]
[404387688,1770090553752,500.0,8.121e-05,2]
[404387689,1770090569121,-250.0,8.121e-05,2]
[404387690,1770090569146,-4948.922638,8.122e-05,2]
[404387691,1770090570733,500.0,8.121e-05,2]
[404387692,1770090570804,500.0,8.121e-05,2]
[404387693,1770090570885,500.0,8.121e-05,2]
[404387694,1770090570965,500.0,8.121e-05,2]
[404387695,1770090571022,500.0,8.121e-05,2]
[404387696,1770090571075,500.0,8.121e-05,2]
[404387697,1770090571122,500.0,8.121e-05,2]
[404387698,1770090571170,500.0,8.121e-05,2]
[404387699,1770090572367,611.36272693,8.112e-05,2]
[404387700,1770090582940,501.5531456,8.121e-05,2]
[404387701,1770090601464,300.0,8.121e-05,2]
[404387702,1770090601521,1200.0,8.121e-05,2]
[404387703,1770090626695,2948.83049645,8.112e-05,2]
[404387734,1770090631667,-497.55228091,8.122e-05,2]
[404387737,1770090631679,-584.79955105,8.122e-05,2]
[404387740,1770090631692,-4804.98591484,8.122e-05,2]
[404387742,1770090631703,-3285.931077,8.122e-05,2]
[404387744,1770090631713,-562.249999,8.122e-05,2]
[404387746,1770090631725,-575.5876787,8.122e-05,2]
[404387749,1770090631740,-412.77728069,8.122e-05,2]
[404387751,1770090631750,-659.1457183,8.122e-05,2]
[404387752,1770090631774,-387.105,8.122e-05,2]
[404387753,1770090631786,-644.71052742,8.122e-05,2]
[404387754,1770090631800,-12540.54144071,8.122e-05,2]
[404387755,1770090631831,-448.91743501,8.122e-05,2]
[404387756,1770090631844,-211320.82512485,8.122e-05,2]
[404387757,1770090631856,-1131.66823526,8.122e-05,2]
[404387758,1770090631868,-1998.0,8.122e-05,2]
[404387759,1770090631880,-708.17229924,8.122e-05,2]
[404387767,1770090637692,-1735.5447947,8.122e-05,2]
[404387768,1770090637745,-1370.716068,8.122e-05,2]
[404387769,1770090637757,-3363.57572788,8.122e-05,2]
[404387770,1770090637769,-15433.24043523,8.122e-05,2]
[404387771,1770090637780,-2609.87988802,8.122e-05,2]
[404387774,1770090638130,-3117525.01088519,8.122e-05,2]
[404387775,1770090638140,-218.0,8.122e-05,2]
[404387776,1770090638149,-592.79024447,8.122e-05,2]
[404387777,1770090638159,-6501.421242,8.178e-05,2]
[404387778,1770090638168,-6120.76479671,8.178e-05,2]
[404387779,1770090638177,-250.0,8.181e-05,2]
[404387780,1770090638186,-1000.0,8.221e-05,2]
[404387781,1770090638195,-200.0,8.249e-05,2]
[404387782,1770090638205,-255.0,8.933e-05,2]
[404387783,1770090638214,-224.0,8.933e-05,2]
[404387784,1770090638224,-300.0,8.933e-05,2]
[404387785,1770090638234,-1680.0,8.933e-05,2]
[404387786,1770090638243,-250.0,8.933e-05,2]
[404387787,1770090638253,-500.0,8.933e-05,2]
[404387788,1770090638262,-250.0,8.934e-05,2]
[404387789,1770090638272,-9999.99,9.045e-05,2]
[404387790,1770090638282,-4999.99,9.045e-05,2]
[404387791,1770090638292,-150.99,9.045e-05,2]
[404387792,1770090638301,-9999.99,9.045e-05,2]
[404387793,1770090638311,-999.99,9.045e-05,2]
[404387794,1770090638320,-9999.99,9.045e-05,2]
[404387795,1770090638333,-299.99,9.045e-05,2]
[404387796,1770090638342,-9999.99,9.153e-05,2]
[404387797,1770090638352,-150.99,9.153e-05,2]
[404387798,1770090638361,-343.78,9.153e-05,2]
[404387799,1770090638371,-195.0,9.826e-05,2]
[404387800,1770090638380,-720.0,9.826e-05,2]
[404387801,1770090638391,-234.74100109,0.0001,2]
[404387802,1770090638401,-151.0,0.0001,2]
[404387803,1770090638410,-500.0,0.0001,2]
[404387804,1770090638420,-500.0,0.0001,2]
[404387805,1770090638430,-500.0,0.0001,2]
[404387806,1770090638440,-500.0,0.0001,2]
[404387807,1770090638450,-500.0,0.0001,2]
[404387808,1770090638460,-500.0,0.0001,2]
[404387809,1770090638470,-500.0,0.0001,2]
[404387810,1770090638480,-500.0,0.0001,2]
[404387811,1770090638490,-151.0,0.0001,2]
[404387812,1770090638503,-500.0,0.0001,2]
[404387813,1770090638513,-151.0,0.0001,2]
[404387814,1770090638522,-500.0,0.0001,2]
[404387815,1770090638533,-151.0,0.0001,2]
[404387816,1770090638542,-500.0,0.0001,2]
[404387817,1770090638552,-151.0,0.0001,2]
[404387818,1770090638562,-151.0,0.0001,2]
[404387819,1770090638572,-151.0,0.0001,2]
[404387820,1770090638582,-500.0,0.0001,2]
[404387821,1770090638591,-151.0,0.0001,2]
[404387822,1770090638601,-500.0,0.0001,2]
[404387823,1770090638610,-151.0,0.0001,2]
[404387824,1770090638620,-500.0,0.0001,2]
[404387825,1770090638630,-151.0,0.0001,2]
[404387826,1770090638639,-500.0,0.0001,2]
[404387827,1770090638648,-151.0,0.0001,2]
[404387828,1770090638658,-500.0,0.0001,2]
[404387829,1770090638667,-151.0,0.0001,2]
[404387830,1770090638676,-151.0,0.0001,2]
[404387831,1770090638686,-151.0,0.0001,2]
[404387832,1770090638695,-500.0,0.0001,2]
[404387833,1770090638704,-151.0,0.0001,2]
[404387834,1770090638713,-151.0,0.0001,2]
[404387835,1770090638731,-500.0,0.0001,2]
[404387836,1770090638745,-500.0,0.0001,2]
[404387837,1770090638754,-500.0,0.0001,2]
[404387838,1770090638764,-500.0,0.0001,2]
[404387839,1770090638773,-151.0,0.0001,2]
[404387840,1770090638783,-500.0,0.0001,2]
[404387841,1770090638792,-151.0,0.0001,2]
[404387842,1770090638802,-151.0,0.0001,2]
[404387843,1770090638811,-151.0,0.0001,2]
[404387844,1770090638821,-151.0,0.0001,2]
[404387845,1770090638832,-151.0,0.0001,2]
[404387846,1770090638842,-151.0,0.0001,2]
[404387847,1770090638851,-151.0,0.0001,2]
[404387848,1770090638861,-151.0,0.0001,2]
[404387849,1770090638870,-151.0,0.0001,2]
[404387850,1770090638880,-151.0,0.0001,2]
[404387851,1770090638890,-151.0,0.0001,2]
[404387852,1770090638899,-151.0,0.0001,2]
[404387853,1770090638908,-151.0,0.0001,2]
[404387854,1770090638918,-151.0,0.0001,2]
[404387855,1770090638927,-151.0,0.0001,2]
[404387856,1770090638937,-150.00717869,0.0001,2]
[404387857,1770090638946,-500.0,0.00010074,2]
[404387858,1770090638956,-500.0,0.00010074,2]
[404387859,1770090638965,-500.0,0.00010074,2]
[404387860,1770090638975,-173.07272258,0.00010074,2]
[404387861,1770090638984,-500.0,0.00010074,2]
[404387862,1770090638993,-500.0,0.00010074,2]
[404387863,1770090639003,-500.0,0.00010074,2]
[404387864,1770090639012,-500.0,0.00010074,2]
[404387865,1770090639023,-500.0,0.00010074,2]
[404387866,1770090639032,-500.0,0.00010074,2]
[404387867,1770090639041,-500.0,0.00010074,2]
[404387868,1770090639051,-500.0,0.00010074,2]
[404387869,1770090639061,-500.0,0.00010074,2]
[404387870,1770090639070,-500.0,0.00010074,2]
[404387871,1770090639083,-500.0,0.00010074,2]
[404387872,1770090639093,-500.0,0.00010074,2]
[404387873,1770090639103,-500.0,0.00010074,2]
[404387874,1770090639113,-13564.57,0.00010192,2]
[404387875,1770090639123,-2943.13,0.00010435,2]
[404387876,1770090639134,-250.0,0.00010731,2]
[404387877,1770090639144,-5156.0782525,0.000109,2]
[404387878,1770090639154,-5156.0782525,0.000109,2]
[404387879,1770090639163,-5156.0782525,0.000109,2]
[404387880,1770090639173,-8671.74,0.00010992,2]
[404387881,1770090639183,-159.79069879,0.00011099,2]
[404387882,1770090639193,-159.79069878,0.00011099,2]
[404387883,1770090639203,-12588.28630253,0.00011099,2]
[404387884,1770090639213,-12588.28630253,0.00011099,2]
[404387885,1770090639231,-12588.28630253,0.00011099,2]
[404387886,1770090639242,-500.0,0.00011123,2]
[404387887,1770090639252,-12588.28630253,0.00011349,2]
[404387888,1770090639262,-150.00717869,0.0001141,2]
[404387889,1770090639272,-159.0,0.00011463,2]
[404387890,1770090639282,-151.0,0.00011463,2]
[404387891,1770090639295,-174.61919141,0.00011606,2]
[404387892,1770090639304,-175.86359297,0.00011606,2]
[404387893,1770090639314,-721.12765535,0.00011606,2]
[404387894,1770090639324,-578.20924308,0.00011606,2]
[404387895,1770090639334,-322.6107,0.00011606,2]
[404387896,1770090639343,-209.40437684,0.00011606,2]
[404387897,1770090639353,-217.15233878,0.00011661,2]
[404387898,1770090639363,-225.18697532,0.00011716,2]
[404387899,1770090639373,-151.0,0.00011771,2]
[404387900,1770090639383,-151.0,0.00011771,2]
[404387901,1770090639392,-233.51889341,0.00011771,2]
[404387902,1770090639402,-278.73,0.00011782,2]
[404387903,1770090639412,-500.0,0.00011808,2]
[404387904,1770090639422,-242.15909246,0.00011826,2]
[404387905,1770090639433,-151.0,0.00011847,2]
[404387906,1770090639442,-151.0,0.00011847,2]
[404387907,1770090639451,-500.0,0.00011863,2]
[404387908,1770090639461,-251.11897888,0.00011881,2]
[404387909,1770090639471,-260.4103811,0.00011936,2]
[404387910,1770090639485,-151.0,0.00011977,2]
[404387911,1770090639496,-151.0,0.00011977,2]
[404387912,1770090639508,-270.0455652,0.00011991,2]
[404387913,1770090639518,-151.0,0.00011995,2]
[404387914,1770090639528,-151.0,0.0001201,2]
[404387915,1770090639539,-280.03725112,0.00012046,2]
[404387916,1770090639549,-290.39862941,0.00012101,2]
[404387917,1770090639559,-1852.42,0.00012131,2]
[404387918,1770090639570,-181.08010149,0.00012154,2]
[404387919,1770090639580,-301.1433787,0.00012156,2]
[404387920,1770090639590,-9538.94,0.00012183,2]
[404387921,1770090639599,-1876.03,0.00012231,2]
[404387922,1770090639609,-500.0,0.00012271,2]
[404387923,1770090639618,-5156.0782525,0.00012287,2]
[404387924,1770090639627,-12588.28630253,0.00012424,2]
[404387925,1770090639637,-145213.53,0.00012453,2]
[404387926,1770090639647,-7814.11542996,0.0001249,2]
[404387927,1770090639656,-6457.45,0.00012563,2]
[404387928,1770090639666,-4532.96,0.00012683,2]
[404387929,1770090639675,-187.78006525,0.00012702,2]
[404387930,1770090639687,-500.0,0.00012712,2]
[404387932,1770090639696,-150.00717869,0.0001282,2]
[404387933,1770090639706,-159.79069878,0.00012961,2]
[404387934,1770090639716,-334.5472959,0.00012975,2]
[404387935,1770090639725,-6120.76479669,0.00012989,2]
[404387936,1770090639734,-10572.7743,0.0001299,2]
[404387937,1770090639743,-2914.65,0.00013045,2]
[404387938,1770090639753,-194.72792766,0.0001325,2]
[404387939,1770090639763,-12588.28630253,0.00013499,2]
[404387940,1770090639775,-726.81,0.00013586,2]
[404387941,1770090639785,-5156.0782525,0.00013691,2]
[404387942,1770090639796,-4408.08,0.00013699,2]
[404387943,1770090639807,-500.0,0.00013699,2]
[404387944,1770090639819,-500.0,0.00013699,2]
[404387945,1770090639829,-201.93286099,0.00013798,2]
[404387946,1770090639840,-500.0,0.00013863,2]
[404387947,1770090639851,-1000.0,0.00014046,2]
[404387948,1770090639861,-150.00717869,0.00014231,2]
[404387949,1770090639872,-1000.0,0.00014244,2]
[404387950,1770090639884,-1000.0,0.00014247,2]
[404387951,1770090639894,-258.51,0.00014259,2]
[404387952,1770090639904,-160.0,0.00014327,2]
[404387953,1770090639913,-726.81,0.00014341,2]
[404387954,1770090639923,-346.92554585,0.00014344,2]
[404387955,1770090639934,-747.8093786,0.00014345,2]
[404387956,1770090639944,-599.60298507,0.00014345,2]
[404387957,1770090639956,-209.40437684,0.00014346,2]
[404387958,1770090639967,-4408.08,0.00014384,2]
[404387959,1770090639978,-218.83,0.00014555,2]
[404387960,1770090639987,-12588.28630253,0.00014574,2]
[404387961,1770090639996,-369.98194845,0.00014795,2]
[404387962,1770090640006,-217.15233878,0.00014894,2]
[404387963,1770090640016,-250.0,0.00015,2]
[404387964,1770090640028,-151.0,0.00015065,2]
[404387965,1770090640038,-4408.08,0.00015068,2]
[404387966,1770090640048,-500.0,0.00015068,2]
[404387967,1770090640060,-5156.0782525,0.00015094,2]
[404387968,1770090640071,-726.81,0.00015096,2]
[404387969,1770090640081,-159.79069878,0.0001538,2]
[404387970,1770090640090,-225.18697532,0.00015442,2]
[404387971,1770090640099,-150.00717869,0.00015641,2]
[404387972,1770090640109,-12588.28630253,0.0001565,2]
[404387973,1770090640118,-359.76179104,0.00015713,2]
[404387974,1770090640127,-500.0,0.00015753,2]
[404387975,1770090640138,-4408.08,0.00015753,2]
[404387976,1770090640149,-726.81,0.0001585,2]
[404387977,1770090640159,-500.0,0.00015885,2]
[404387978,1770090640168,-1000.0,0.00015918,2]
[404387979,1770090640177,-233.51889341,0.0001599,2]
[404387980,1770090640186,-256.701042,0.00016,2]
[404387981,1770090640196,-9999.99,0.00016116,2]
[404387982,1770090640207,-159.65710457,0.00016133,2]
[404387983,1770090640218,-1103.0,0.00016313,2]
[404387984,1770090640229,-1911.41410949,0.00016438,2]
[404387985,1770090640239,-4408.08,0.00016438,2]
[404387986,1770090640249,-500.0,0.00016493,2]
[404387987,1770090640262,-5156.0782525,0.00016497,2]
[404387988,1770090640273,-1000.0,0.00016515,2]
[404387990,1770090640283,-242.15909246,0.00016538,2]
[404387991,1770090640292,-726.81,0.00016605,2]
[404387992,1770090640304,-278.73,0.00016652,2]
[404387993,1770090640313,-12588.28630253,0.00016725,2]
[404387994,1770090640324,-1000.0,0.000168,2]
[404387995,1770090640334,-1500.0,0.000168,2]
[404387996,1770090640343,-500.0,0.00016809,2]
[404387997,1770090640353,-500.0,0.00016813,2]
[404387998,1770090640364,-5888.0,0.00016901,2]
[404387999,1770090640373,-152.0,0.00016981,3]
[404388000,1770090640383,-200.0,0.00016983,2]
[404388001,1770090640395,-300.0,0.00017,2]
[404388002,1770090640406,-150.00717869,0.00017051,2]
[404388003,1770090640415,-5888.0,0.00017054,2]
[404388004,1770090640424,-9538.94,0.00017056,2]
[404388005,1770090640433,-5888.0,0.0001708,2]
[404388006,1770090640443,-373.07297731,0.00017082,2]
[404388007,1770090640452,-775.47832561,0.00017084,2]
[404388008,1770090640461,-621.78829552,0.00017084,2]
[404388010,1770090640470,-251.11897888,0.00017086,2]
[404388012,1770090640479,-5888.0,0.00017093,2]
[404388014,1770090640490,-1000.0,0.00017112,2]
[404388015,1770090640774,-1103.0,0.00017171,2]
[404388016,1770090640784,-1500.0,0.000172,2]
[404388017,1770090640794,-835.834,0.00017222,2]
[404388018,1770090640803,-9903.003,0.00017222,2]
[404388019,1770090640813,-1000.0,0.0001726,2]
[404388020,1770090640822,-159.65710457,0.00017285,2]
[404388021,1770090640831,-5888.0,0.0001735,2]
[404388022,1770090640840,-726.81,0.0001736,2]
[404388023,1770090640850,-5888.0,0.00017495,2]
[404388024,1770090640859,-1000.0,0.00017534,2]
[404388025,1770090640869,-1335.0,0.000176,2]
[404388026,1770090640878,-616.0,0.000176,2]
[404388027,1770090640888,-3481.0,0.000176,2]
[404388028,1770090640898,-1410.0,0.000176,2]
[404388029,1770090640907,-150.0,0.000176,2]
[404388030,1770090640916,-1271.0,0.000176,2]
[404388031,1770090640926,-1205.0,0.000176,2]
[404388032,1770090640935,-917.0,0.000176,2]
[404388033,1770090640945,-213.0,0.000176,2]
[404388034,1770090640955,-150.0,0.000176,2]
[404388035,1770090640964,-6580.0,0.000176,2]
[404388036,1770090640974,-568.0,0.000176,2]
[404388037,1770090640984,-3253.0,0.000176,2]
[404388038,1770090640993,-5888.0,0.00017625,2]
[404388039,1770090641002,-260.4103811,0.00017634,2]
[404388040,1770090641011,-587.8745622,0.0001764,2]
[404388041,1770090641020,-200.0,0.0001766,2]
[404388042,1770090641029,-200.0,0.00017698,2]
[404388043,1770090641038,-1000.0,0.00017709,2]
[404388044,1770090641048,-5888.0,0.00017731,2]
[404388045,1770090641057,-5888.0,0.00017749,2]
[404388046,1770090641066,-152.0,0.00017776,4]
[404388047,1770090641076,-2168.8076457,0.00017781,2]
[404388048,1770090641085,-2490.93580971,0.000178,2]
[404388049,1770090641095,-1296.91670204,0.000178,2]
[404388050,1770090641105,-12588.28630253,0.000178,2]
[404388051,1770090641115,-159.79069878,0.000178,2]
[404388052,1770090641125,-500.0,0.00017808,2]
[404388053,1770090641134,-250.0,0.00017808,10]
[404388054,1770090641143,-250.0,0.00017808,10]
[404388055,1770090641152,-250.0,0.00017808,10]
[404388056,1770090641162,-250.0,0.00017808,10]
[404388057,1770090641172,-291.65364,0.00017808,10]
[404388058,1770090641185,-1000.0,0.00017808,2]
[404388059,1770090641195,-2490.93580969,0.00017817,2]
[404388060,1770090641205,-3760.56275963,0.0001782,10]
[404388061,1770090641215,-2000.0,0.0001782,2]
[404388062,1770090641225,-2000.0,0.0001782,2]
[404388063,1770090641235,-1296.91670201,0.00017825,2]
[404388064,1770090641246,-2490.93580969,0.00017833,2]
[404388065,1770090641256,-2490.93580969,0.0001785,2]
[404388066,1770090641266,-1296.91670201,0.0001785,2]
[404388067,1770090641275,-278.73,0.00017861,2]
[404388068,1770090641285,-508.19931101,0.00017863,2]
[404388069,1770090641309,-2168.8076457,0.00017863,2]
[404388070,1770090641319,-2490.93580969,0.00017867,2]
[404388071,1770090641329,-1296.91670201,0.00017875,2]
[404388072,1770090641339,-2490.93580969,0.00017883,2]
[404388073,1770090641349,-500.0,0.00017899,2]
[404388074,1770090641358,-500.0,0.00017899,2]
[404388075,1770090641368,-500.0,0.00017899,2]
[404388076,1770090641377,-500.0,0.00017899,2]
[404388077,1770090641387,-500.0,0.00017899,2]
[404388078,1770090641397,-500.0,0.00017899,2]
[404388079,1770090641406,-371.76186134,0.00017899,2]
[404388080,1770090641416,-22636.5651,0.000179,2]
[404388081,1770090641426,-7160.9476,0.000179,2]
[404388082,1770090641435,-10000.0,0.000179,2]
[404388083,1770090641445,-1000.0,0.000179,2]
[404388084,1770090641455,-500.0,0.000179,2]
[404388085,1770090641464,-1000000.0,0.000179,2]
[404388086,1770090641474,-10140.7131,0.000179,2]
[404388087,1770090641484,-2617.0576,0.000179,2]
[404388088,1770090641494,-500.0,0.000179,2]
[404388089,1770090641508,-637.7962,0.000179,2]
[404388090,1770090641517,-2490.93580969,0.000179,2]
[404388091,1770090641527,-1296.91670201,0.000179,2]
[404388092,1770090641545,-6120.76479669,0.000179,2]
[404388093,1770090641557,-5156.0782525,0.000179,2]
[404388094,1770090641567,-18183.0,0.000179,2]
[404388095,1770090641577,-2168.8076457,0.00017945,2]
[404388096,1770090641587,-200.0,0.00017969,2]
[404388097,1770090641597,-151.0,0.00017997,2]
[404388098,1770090641606,-300.0,0.00017999,2]
[404388099,1770090641616,-300.0,0.00017999,2]
[404388100,1770090641625,-300.0,0.00017999,2]
[404388101,1770090641635,-666.0,0.00017999,2]
[404388102,1770090641645,-300.0,0.00017999,2]
[404388103,1770090641655,-5464171.64030747,0.00018,2]
[404388104,1770090641678,-500.0,0.00018,2]
[404388105,1770090641690,-1050.0,0.00018,2]
[404388106,1770090641850,-785.92,0.00018,2]
[404388107,1770090641932,-0.00557787,0.00018,2]
[404388108,1770090641955,-7428432.46128505,0.00018,2]
[404388109,1770090642083,150.0,8.094e-05,2]
[404388120,1770090645933,-151.0,0.00011961,2]
[404388121,1770090645943,-151.0,0.00011961,2]
[404388122,1770090645955,-1160.96504389,0.00018,2]
[404388123,1770090645967,-3978.77963428,0.00018,2]
[404388124,1770090646011,-3670.15624365,0.00018,2]
[404388125,1770090646278,-2081.77707483,0.00018,2]
[404388126,1770090646333,-816097.80601948,0.00018,2]
[404388128,1770090646392,-5335.71557071,0.00018,2]
[404388133,1770090646449,-5536.31568212,0.00018,2]
[404388134,1770090646463,-2140.84999,0.00018,2]
[404388137,1770090666258,473.86519714,8.121e-05,2]
[404388139,1770090680608,500.0,8.121e-05,2]
[404388140,1770090680668,500.0,8.121e-05,2]
[404388141,1770090680718,500.0,8.121e-05,2]
[404388142,1770090680775,500.0,8.121e-05,2]
[404388143,1770090680823,261.86872071,8.121e-05,2]
[404388144,1770090680875,500.0,8.121e-05,2]
[404388145,1770090703619,291.31955284,8.121e-05,2]
[404388146,1770090750417,500.0,8.219e-05,2]
[404388147,1770090750461,500.0,8.219e-05,2]
[404388148,1770090750526,500.0,8.219e-05,2]
[404388149,1770090750579,500.0,8.219e-05,2]
[404388150,1770090750619,308.51629203,8.219e-05,2]
[404388151,1770090750841,500.0,8.219e-05,2]
[404388152,1770090750879,500.0,8.219e-05,2]
[404388153,1770090751075,500.0,8.219e-05,2]
[404388154,1770090751129,500.0,8.219e-05,2]
[404388155,1770090751452,500.0,8.219e-05,2]
[404388156,1770090784751,2138.30543442,8.022e-05,2]
[404388157,1770090784780,10000.01,8.022e-05,2]
[404388158,1770090784806,10000.01,8.022e-05,2]
[404388159,1770090784832,10000.01,8.022e-05,2]
[404388160,1770090784858,10000.01,8.022e-05,2]
[404388161,1770090784883,10000.01,8.022e-05,2]
[404388162,1770090784910,10000.01,8.022e-05,2]
[404388163,1770090784937,10000.01,8.022e-05,2]
[404388164,1770090784964,10000.01,8.022e-05,2]
[404388165,1770090784991,10000.01,8.022e-05,2]
[404388166,1770090842080,150.0,8.021e-05,2]
[404388167,1770090842127,224.0,8.021e-05,2]
[404388168,1770090852265,-6424.50267105,8.022e-05,2]
[404388169,1770090852351,-10000.01,8.022e-05,2]
[404388170,1770090852475,-10000.01,8.022e-05,2]
[404388171,1770090852599,-10000.01,8.022e-05,2]
[404388172,1770090852696,-10000.01,8.022e-05,2]
[404388173,1770090852822,-10000.01,8.022e-05,2]
[404388174,1770090852947,-10000.01,8.022e-05,2]
[404388175,1770090853053,-10000.01,8.022e-05,2]
[404388176,1770090853161,-10000.01,8.022e-05,2]
[404388177,1770090853261,-10000.01,8.022e-05,2]
[404388178,1770090853413,-10000.01,8.022e-05,2]
[404388179,1770090854686,200.0,7.994e-05,2]
[404388180,1770090855311,-10000.01,8.022e-05,2]
[404388181,1770090855423,-10000.01,8.022e-05,2]
[404388182,1770090858290,-10000.01,8.022e-05,2]
[404388183,1770090858383,-10000.01,8.022e-05,2]
[404388184,1770090858501,-10000.01,8.022e-05,2]
[404388185,1770090858613,-10000.01,8.022e-05,2]
[404388186,1770090858787,-10000.01,8.022e-05,2]
[404388187,1770090858899,-10000.01,8.022e-05,2]
[404388188,1770090859001,-10000.01,8.022e-05,2]
[404388189,1770090859129,-10000.01,8.022e-05,2]
[404388190,1770090859240,-10000.01,8.022e-05,2]
[404388191,1770090859374,-10000.01,8.022e-05,2]
[404388192,1770090871899,415.57581713,8.021e-05,2]
[404388193,1770090871956,203.92368699,8.021e-05,2]
[404388194,1770090873983,500.0,8.021e-05,2]
[404388195,1770090874051,500.0,8.021e-05,2]
[404388196,1770090874123,500.0,8.021e-05,2]
[404388197,1770090874194,500.0,8.021e-05,2]
[404388198,1770090874260,500.0,8.021e-05,2]
[404388199,1770090874332,500.0,8.021e-05,2]
[404388200,1770090874682,500.0,8.021e-05,2]
[404388201,1770090874740,389.89910879,8.021e-05,2]
[404388202,1770090874841,290.61138709,8.021e-05,2]
[404388203,1770090874864,209.38861291,8.021e-05,2]
[404388204,1770090893233,500.0,8.021e-05,2]
[404388205,1770090893296,500.0,8.021e-05,2]
[404388206,1770090893366,500.0,8.021e-05,2]
[404388207,1770090901527,300.0,8.021e-05,2]
[404388208,1770090901808,1200.0,8.021e-05,2]
[404388209,1770090919401,500.0,7.922e-05,2]
[404388210,1770091010417,-10000.01,8.022e-05,2]
[404388211,1770091015512,-10000.01,8.022e-05,2]
[404388212,1770091021991,150.0,8.021e-05,2]
[404388213,1770091054291,-218845.0,8.022e-05,2]
[404388214,1770091069674,1140.62138709,8.021e-05,2]
[404388215,1770091069696,86.79324316,8.021e-05,2]
[404388216,1770091069737,1227.41463025,8.021e-05,2]